Cogmind - Beta 16.1 @@@ ROGUE MODE // 2026.04.04 @ 20:40:58 Player: abnormal202 Result: Destroyed by G-47 Trooper with Particle Gun Performance ------------- Evolutions (2) 1000 Regions Visited (3) 600 Robots Destroyed (32) 160 Value Destroyed (861) 861 Prototype IDs (0) 0 Alien Tech Used (0) 0 Bonus (0) 0 TOTAL SCORE: 2621 Bonus ------- None Cogmind --------- Core Integrity 0/550 Matter 93/300 Energy 95/100 System Corruption 0% Temperature Cool (9) Movement Core (200) Ox3 Location -8/Materials Parts ------- > --- POWER (2) -------- (None) > --- PROPULSION (2) --- (None) > --- UTILITY (4) ------ Medium Storage Unit > --- WEAPON (3) ------- (None) > --- INVENTORY (10) --- Small Storage Unit Seismic Detector Medium Laser Subdweller Laser Shrapnel Trap Peak State ------------ > --- POWER ------------ Light Ion Engine Improved Ion Engine > --- PROPULSION ------- Spiked Treads Spiked Treads > --- UTILITY ---------- Large Storage Unit Subdweller Optics Seismic Detector Makeshift Light Armor Plating > --- WEAPON ----------- Shock Rifle Gauss Cannon Heavy Missile Launcher > --- INVENTORY -------- Light Ion Engine Light Treads Light Treads Spiked Treads Small Storage Unit Medium Storage Unit Medium Laser Subdweller Laser Gauss Cannon Grenade Launcher Shrapnel Trap [Rating: 27] Favorites ----------- Power Light Ion Engine Engine Light Ion Engine Power Core Light Nuclear Core Propulsion Spiked Treads Treads Spiked Treads Utility Large Storage Unit Device Seismic Detector Storage Large Storage Unit Protection Makeshift Light Armor Plating Weapon Assault Rifle Energy Gun Medium Laser Ballistic Gun Assault Rifle Ballistic Cannon Gauss Cannon Launcher Grenade Launcher Build | -11 -10 -10 -8 ------- Run | Yrd Mat Sub Mat Slots Evolved 4 | . . . 4 Power 1 | . . . 1 Propulsion . | . . . . Utility 2 | . . . 2 Weapon 1 | . . . 1 Parts Attached 25 | 7 4 7 7 Power 5 | 1 1 2 1 Engine 4 | 1 . 2 1 Core 1 | . 1 . . Reactor . | . . . . Propulsion 5 | 2 . 3 . Treads 5 | 2 . 3 . Leg . | . . . . Wheel . | . . . . Hover . | . . . . Flight . | . . . . Utility 7 | 2 2 1 2 Device 3 | 1 . 1 1 Storage 3 | 1 2 . . Processor . | . . . . Hackware . | . . . . Protection 1 | . . . 1 Artifact . | . . . . Weapon 8 | 2 1 1 4 Energy Gun 3 | 1 . 1 1 Energy Cannon . | . . . . Ballistic Gun 1 | 1 . . . Ballistic Cannon 2 | . . . 2 Launcher 2 | . 1 . 1 Special Weapon . | . . . . Impact Weapon . | . . . . Slashing Weapon . | . . . . Piercing Weapon . | . . . . Special Melee Weapon . | . . . . Unidentified Prototypes . | . . . . Parts Lost 16 | . . 2 14 Power 4 | . . 1 3 Propulsion 4 | . . . 4 Utility 3 | . . . 3 Weapon 5 | . . 1 4 Highest Loss Streak 7 | . . 1 7 To Critical Strikes . | . . . . Average Backups 6 | 1 3 6 8 Power 1 | . 1 1 . Propulsion 1 | . . 1 2 Utility 2 | . 1 2 2 Weapon 1 | . . . 3 Tool/Special . | . . . . Unused Backups . | . . . . Power . | . . . . Propulsion . | . . . . Utility . | . . . . Weapon . | . . . . Tool/Special . | . . . . Average Slot Usage (%) 93 | . 100 99 77 Engine 11 | . 7 12 12 Core 1 | . 6 1 . Treads 24 | . 28 28 14 Device 13 | . 14 14 12 Storage 12 | . 14 14 9 Protection 2 | . . . 7 Energy Gun 7 | . 10 5 12 Ballistic Gun 8 | . 14 10 . Ballistic Cannon 1 | . . . 6 Launcher 7 | . 3 11 2 Peak Build Rating 27 | 7 9 13 27 Average Rating 11 | 5 7 9 19 On Entrance 7 | . 7 9 13 Avg Prop Armor Cover (%) 8 | . . . 8 Naked Turns . | . . . . Heaviest Build 51 | 13 31 33 51 Greatest Support 40 | 40 40 40 40 Greatest Overweight (x) 7 | 1 . . 7 Average Overweight (x) . | . . . 1 Largest Inventory Capacity 15 | 8 15 15 15 Average Capacity 13 | 7 14 15 12 Most Carried 12 | 5 5 11 12 Average Carried 7 | 1 3 7 9 Final Capacity 15 | 8 15 15 10 Final Carried 11 | 1 5 11 5 Class Distribution -------------------- 90% | Mutant 9% | Tank Dominant Class ---------------- Mutant | -10/Materials Mutant | -10/Subcaves Mutant | -8/Materials Resources | -11 -10 -10 -8 ----------- Run | Yrd Mat Sub Mat Matter Collected 890 | 318 54 224 294 Remotely . | . . . . Salvage Created 859 | 158 95 95 511 Parts 51 | 12 5 8 26 Haulers Intercepted . | . . . . Recyclers Shooed 1 | 1 . . . Parts Field Recycled . | . . . . Retrieved Matter . | . . . . Parts Self-Destructed 13 | . . 13 . Prevented . | . . . . Parts Restored . | . . . . Kills | -11 -10 -10 -8 ------- Run | Yrd Mat Sub Mat Combat Hostiles Destroyed 22 | . 2 9 11 Guns 6 | . 2 2 2 Cannons 3 | . . . 3 AOE 13 | . . 7 6 Classes Destroyed 9 | 3 1 3 2 Worker 3 | 1 . . 2 Builder 1 | . . . 1 Tunneler 3 | 3 . . . Recycler 3 | 1 . . 2 Swarmer 6 | . . 6 . Grunt 11 | . 2 1 8 Sentry 3 | . . 1 2 Hunter 1 | . . . 1 Subdweller 1 | . . 1 . Best Kill Streak 5 | 3 2 3 5 Combat Bots Only 3 | . 2 3 3 Max Kills in Single Turn 3 | 1 1 3 3 Gunslinging . | . . . . Exploded 3 | . . 3 3 Melee . | . . . . Uniques/NPCs Destroyed . | . . . . Combat | -11 -10 -10 -8 -------- Run | Yrd Mat Sub Mat Hostile Shots Fired 164 | . 15 21 128 Missed 33 | . 4 4 25 Hits 131 | . 11 17 103 Projectile 131 | . 11 17 103 Critical Strikes 3 | . . 1 2 Damage Taken 2682 | . 374 293 2015 Core 662 | . 48 61 553 Absorbed by Shields . | . . . . Regen/Repaired (Parts) 145 | . . . 145 Core Remaining (%) 78 | 100 . 56 . Volleys Fired 85 | 16 16 13 40 Largest 3 | 2 2 2 3 Hottest 150 | 70 70 110 150 Shots Fired 140 | 32 32 26 50 Gun 90 | 32 25 17 16 Cannon 18 | . . . 18 Launcher 32 | . 7 9 16 Special . | . . . . Kinetic 59 | 16 16 9 18 Thermal 41 | 16 9 8 8 Explosive 32 | . 7 9 16 Electromagnetic 8 | . . . 8 Robot Hit Streak 7 | 7 7 7 7 Robot Miss Streak 4 | 2 1 2 4 Penetration Max . | . . . . Secondary Targets 1 | . . . 1 Max Gunslinging Chain 1 | . . . 1 Shots Hit Robots 72 | 16 13 13 30 Core Hits 48 | 5 6 12 25 Critical Kills . | . . . . Critical Parts Destroyed . | . . . . Critical Strikes 6 | . 2 . 4 Burn 2 | . 2 . . Blast 4 | . . . 4 Melee Attacks . | . . . . Impact . | . . . . Slashing . | . . . . Piercing . | . . . . Sneak Attacks . | . . . . Combat Hostiles . | . . . . Follow-up Attacks . | . . . . Damage Inflicted 2482 | 215 168 526 1573 Guns 695 | 215 168 154 158 Cannons 420 | . . . 420 Explosions 1349 | . . 372 977 Melee . | . . . . Ramming 18 | . . . 18 Kinetic 657 | 90 79 68 420 Thermal 337 | 125 89 86 37 Explosive 1349 | . . 372 977 Electromagnetic 121 | . . . 121 Impact . | . . . . Slashing . | . . . . Piercing . | . . . . Highest Corruption . | . . . . Average Corruption . | . . . . Corruption Purged . | . . . . Corruption Blocked . | . . . . Overload Shots . | . . . . Overflow Damage 88 | . . 32 56 Projectiles 6 | . . . 6 Explosions 82 | . . 32 50 Melee . | . . . . Knockbacks 4 | . . . 4 Impact . | . . . . Kinetic 4 | . . . 4 Secondary . | . . . . Self-Inflicted Damage 431 | . 73 29 329 Shots 13 | . 3 1 9 Rammed 14 | . . . 14 Targets Rammed 15 | . . . 15 Kicked . | . . . . Crushed 1 | . . . 1 Highest Temperature 633 | 36 153 4 633 Average Temperature 110 | 15 78 3 160 Received Heat Transfer 921 | . 81 93 747 Effects 14 | . . . 14 Shutdowns 3 | . . . 3 Energy Bleed 1 | . . . 1 Matter Decay 2 | . . . 2 Short Circuit 3 | . . . 3 Damage (major) 4 | . . . 4 Damage (core) 1 | . . . 1 Siege Activations . | . . . . Martial Activations . | . . . . Shielding Activations . | . . . . Robots Disrupted . | . . . . Combat Hostiles . | . . . . Robots Corrupted . | . . . . Combat Hostiles . | . . . . Parts Fried . | . . . . Impact Corruptions . | . . . . Robots Melted . | . . . . Combat Hostiles . | . . . . Parts Melted 2 | 1 1 . . Heat Transferred 976 | 370 407 149 50 Parts Sabotaged . | . . . . Parts Stolen . | . . . . Parts Stripped . | . . . . Power Chain Reactions . | . . . . Alert | -11 -10 -10 -8 ------- Run | Yrd Mat Sub Mat Maximum Alert Level 1 | . . . 1 Low Security (%) 87 | 100 100 . 76 Level 1 12 | . . . 23 Level 2 . | . . . . Level 3 . | . . . . Level 4 . | . . . . Level 5 . | . . . . High Security . | . . . . Max Security . | . . . . Peak Influence 306 | 10 40 . 306 Initial 1 | . . . 1 Average 56 | . 10 . 101 Influence Increases 757 | 25 58 180 494 Destroy 0b10 Robot/C 420 | . 40 160 220 Destroy 0b10 Robot/NC 50 | 25 . . 25 Destroy Leader 80 | . 10 20 50 Disable Machine 45 | . . . 45 Destroy Structure 147 | . 8 . 139 Lose Combat Pursuer 15 | . . . 15 Influence Decreases 537 | 25 58 176 278 Entered New Map 3 | . . . 3 Time Decay 394 | 25 58 176 135 Lost Part 140 | . . . 140 Squads Dispatched 4 | . 1 . 3 Investigation 1 | . . . 1 Extermination . | . . . . Reinforcement 3 | . 1 . 2 Assault . | . . . . Garrison . | . . . . Intercept . | . . . . Searches Triggered . | . . . . Construction Impeded 1 | . . . 1 Haulers Reinforced . | . . . . Active Scanning Responses . | . . . . Cargo Convoy Interrupts . | . . . . Stealth | -11 -10 -10 -8 --------- Run | Yrd Mat Sub Mat Distress Signals 1 | . . . 1 Communications Jammed . | . . . . Distress Signals . | . . . . Times Spotted 29 | . 3 7 19 Peak Tracking Total 4 | . 2 3 4 Tactical Retreats 1 | . . . 1 Traps | -11 -10 -10 -8 ------- Run | Yrd Mat Sub Mat Traps Triggered 1 | . . 1 . Indirectly . | . . . . Trap Hack Attempts . | . . . . Triggered . | . . . . Disarmed . | . . . . Reprogrammed . | . . . . Reused . | . . . . Traps Extracted . | . . . . Installed . | . . . . Triggered . | . . . . Most Traps Carried 1 | . . 1 1 Machines | -11 -10 -10 -8 ---------- Run | Yrd Mat Sub Mat Machines Disabled 3 | . . . 3 Max in Single Turn 1 | . . . 1 Machines Repaired . | . . . . Machines Dismantled . | . . . . Machines Sabotaged . | . . . . Overloaded Fab Kills . | . . . . Hacking | -11 -10 -10 -8 --------- Run | Yrd Mat Sub Mat Machines Accessed 4 | . 1 . 3 Terminals 3 | . 1 . 2 Fabricators . | . . . . Repair Stations 1 | . . . 1 Recycling Units . | . . . . Scanalyzers . | . . . . Garrison Access . | . . . . Total Hacks 11 | . 1 . 10 Successful 6 | . . . 6 Failed 5 | . 1 . 4 Catastrophic 1 | . 1 . . Database Lockouts . | . . . . Manual . | . . . . Terminals 9 | . 1 . 8 Fabricators . | . . . . Repair Stations 2 | . . . 2 Recycling Units . | . . . . Scanalyzers . | . . . . Garrison Access . | . . . . Terminal Hacks 4 | . . . 4 Record 1 | . . . 1 Branch Access Points 1 | . . . 1 Alert Level 1 | . . . 1 Surveillance Status 1 | . . . 1 Fabricator Hacks . | . . . . Repair Station Hacks 2 | . . . 2 Scan Component 1 | . . . 1 Repair 1 | . . . 1 Recycling Unit Hacks . | . . . . Scanalyzer . | . . . . Garrison Access Hacks . | . . . . Unauthorized Hacks . | . . . . Terminals . | . . . . Fabricators . | . . . . Repair Stations . | . . . . Recycling Units . | . . . . Scanalyzers . | . . . . Garrison Access . | . . . . Data Cores Recovered . | . . . . Used . | . . . . Hacking Detections 3 | . 1 . 2 Full Trace Events 1 | . . . 1 Feedback Events . | . . . . Feedback Blocked . | . . . . Robot Schematics Acquired . | . . . . Robots Built . | . . . . Authchips . | . . . . Time . | . . . . Total Robot Build Rating . | . . . . Part Schematics Acquired . | . . . . Parts Built . | . . . . Authchips . | . . . . Time . | . . . . Total Part Build Rating . | . . . . Part Studies Acquired . | . . . . Parts Repaired 1 | . . . 1 Time 32 | . . . 32 Parts Recycled . | . . . . Recycled Matter . | . . . . Retrieved Matter . | . . . . Retrieved Components . | . . . . Parts Scanalyzed . | . . . . Part Schematics Acquired . | . . . . Parts Damaged . | . . . . Bothacking | -11 -10 -10 -8 ------------ Run | Yrd Mat Sub Mat Used RIF Installer . | . . . . Robots Hacked . | . . . . Non-combat . | . . . . Combat . | . . . . Robot Hacks Applied . | . . . . Relay Couplers Released . | . . . . Fabnet Peak Effective % . | . . . . Robots Rewired . | . . . . Allies Hacked . | . . . . Hacks Repelled . | . . . . Allies | -11 -10 -10 -8 -------- Run | Yrd Mat Sub Mat Total Allies . | . . . . Largest Group . | . . . . Highest-Rated Group . | . . . . Highest-Rated Ally . | . . . . Total Orders . | . . . . Ally Attacks . | . . . . Total Damage . | . . . . Kills . | . . . . Allies Corrupted . | . . . . Allies Melted . | . . . . Intel | -11 -10 -10 -8 ------- Run | Yrd Mat Sub Mat Active Infowar (turns) 1704 | 27 216 1047 414 Optics 423 | . . 190 233 Seismic 1496 | 27 216 857 396 Robot Analysis Total . | . . . . Derelict Logs Recovered 1 | . . 1 . Drone Launches . | . . . . Drone Recoveries . | . . . . Exploration | -11 -10 -10 -8 ------------- Run | Yrd Mat Sub Mat Turns Passed 1908 | 189 216 1047 456 Spaces Moved 922 | 98 98 617 109 Core 32 | 27 . . 5 Treads 890 | 71 98 617 104 Legs . | . . . . Wheels . | . . . . Hover . | . . . . Flight . | . . . . Fastest Speed 50 | 50 160 160 160 Average Speed 167 | 130 160 160 248 Slowest Speed 400 | 160 160 160 400 Overloaded Moves . | . . . . Propulsion Burnouts . | . . . . Robots Hopped . | . . . . Potential Cave-ins 6 | . 6 . . Cave-ins Triggered 1 | . 1 . . Exploration Rate (%) 21 | 4 20 45 16 Regions Visited 3 Branch Regions 1 Pre-discovered Areas 1 | . . 1 . Known Exits Taken . | . . . . Unknown Exits Taken 3 | 1 1 1 . Scrap Searched 3 | . . 3 . Spaces Dug 18 | . 8 10 . Terrain Destroyed 264 | . 47 35 182 Melee . | . . . . Projectile 6 | . . . 6 AOE 258 | . 47 35 176 Terrain Rammed . | . . . . Walls Destroyed . | . . . . Machines Disabled . | . . . . Actions | -11 -10 -10 -8 --------- Run | Yrd Mat Sub Mat Total 1121 | 127 123 646 225 Wait 34 | . 2 . 32 Move 919 | 97 97 616 109 Hop . | . . . . Pick Up 25 | 7 4 8 6 Fast Attach 2 | 1 . . 1 Attach 21 | 6 . 2 13 Detach 1 | . . . 1 Swap 15 | . 4 7 4 Drop 4 | . . . 4 Fire 85 | 16 16 13 40 Melee . | . . . . Ram 10 | . . . 10 Kick . | . . . . Crush 5 | . . . 5 Escape Stasis . | . . . . Rewire . | . . . . Trap . | . . . . Miscellaneous . | . . . . Route ------- -11/Scrapyard -10/Materials -10/Subcaves -8/Materials History --------- Turn | Location | Event 51 | -11/Scrapyard | Discovered new exit (range 12) 190 | -11/Scrapyard | Entered Materials 302 | -10/Materials | Build established: Mutant 390 | -10/Materials | Crushed by falling debris 399 | -10/Materials | Discovered new exit (range 4) 406 | -10/Materials | Entered Subcaves 562 | -10/Subcaves | A swath of the cavern ceiling suddenly collapsed 1167 | -10/Subcaves | Shifting Twisted Machinery released Mak. Light Armor Plating 1174 | -10/Subcaves | Shifting Twisted Machinery released Shrapnel Trap 1279 | -10/Subcaves | Discovered new exit (range 15) 1377 | -10/Subcaves | Shifting Twisted Machinery released Sub. Monowheel 1453 | -10/Subcaves | Entered Materials 1453 | -8/Materials | Evolved 4 slots: Power x1, Utility x2, Weapon x1 1788 | -8/Materials | Repaired Spk. Treads 1864 | -8/Materials | Lost 5 parts (1p2n2w) 1874 | -8/Materials | Core integrity fell below 50% 1902 | -8/Materials | Core integrity fell below 20% 1909 | -8/Materials | Destroyed by G-47 Trooper with Particle Gun Last Messages --------------- 01890_ K-01 Serf collects debris. 01891_ U-05 Engineer lays Concrete. 01891_ Slammed into G-47 Trooper. 01892_ U-05 Engineer lays Concrete. 01893_ U-05 Engineer builds a Door. 01894_ Slammed into G-47 Trooper. 01895_ Acquired 41 matter. 01895_ Lgt. Ion Engine destroyed. 01895_ K-01 Serf collects debris. 01896_ Slammed into G-47 Trooper. 01897_ U-05 Engineer builds a Wall. 01898_ R-06 Scavenger collects Carbon-fiber Leg. 01898_ Slammed into G-47 Trooper. 01901_ The unstable cave ceiling collapses. 01901_ Aluminum Leg crushed. 01901_ U-05 Engineer lays Concrete. 01902_ Slammed into G-47 Trooper. 01904_ Acquired 10 matter. 01908_ Grenade Launcher destroyed. 01908_ U-05 Engineer lays Concrete. Map ----- +----------------------------------------------------+ | ?????????????????????????????????????????????????? | | ?????????????????????????????????????????????????? | | ?????????????????????????????????????????????????? | | ?????????????????????????????????????????????????? | | ?????????????????????????????????????????????????? | | ?????????????????????????????????????????????????? | | ?????????????????????????????????????????????????? | | ?????????????????????????????????????????????????? | | ?????????????????????????????????????????????????? | | ????????????????????? ???????????????????????????? | | ?????????????????? ###+???????????????????????? | | ???????????????? ???????????????????????? | | ???????????????? ????????? #????????????? | | ???????????????"" ???????? #????????????? | | ???????????????"Y ####### #??[?????????? | | ??????????????#"" # ! [# k #? "???????? | | ??????????????? ==o # # # == T???????? | | ???????????????? === # ! a +!=! " ??????? | | ????????????????? === # # #%% ???????? | | ??????????????????? # "T =# [= ?????????? | | ????????????????????? # "" % #???????????? | | ?????????????????????## # * #???????????? | | ?????????????????????# [ #???????????? | | ?????????????????????# = =g #% ##??? # ???? | | ??????????????????????# gg *rm u u # ???? | | ??????????????????????# @ # =* ??? | | ?????????????????????# # =%! [ ??? | | ?????????????????????## % # == ??? | | ??????????????????????# # ## ####+### %?? | | ??????????????????????# % # #[ ?????# | | ??????????????????????# # ## "" ??# | | ??????????????????????# # """ ## """#? ? ??# | | ??????????????????????# ; "R #] ""#??????# | | ??????????????????????# # """ # "#??????# | | ??????????????????????# # "#??????# | | ??????????????????????# ###### k ######## | | ??????????????????????; ????#### "# | | ?????????????????????## ????# / | | ??????????????????????# ????## # # | | ??????????????????????# ?????# # =[ ####+### | | ??????????????????????? ?????# # ## # | | ???????????????????????????????### ######## " | | ?????????????????????????????????###??????#""" ! | | ??????????????????????????????????????????#""" # | | ??????????????????????????????????????????#""" | | ??????????????????????????????????????????# "" | | ??????????????????????????????????????????#""" # | | ??????????????????????????????????????????#"" # | | ??????????????????????????????????????????#"" | | | ??????????????????????????????????????????# " ## | +----------------------------------------------------+ Best States ------------- Heat Dissipation 31 Energy Generation 17 Energy Capacity 290 Matter Stores 300 Matter Capacity 300 Sight Range 21 Terrain Scan Density 10 Armor Coverage 100 Evasion (%) 50 Recoil Reduction 2 Item Schematics ----------------- None Robot Schematics ------------------ None Fabricated ------------ Nothing Repaired ---------- Spk. Treads | 27% | -8/Materials Studied --------- None Alien Tech Used ----------------- None Achievements -------------- Well Done Challenges ------------ None Game ------ Seed UltimateSuperquantumMatter Manual? 0 Play Time 00:16:43 Cumulative 39.1 hours Start 2026.03.15 @ 19:49:36 End 2026.04.04 @ 20:40:58 Sessions 1 Manual Loads 0 Difficulty Rogue Special Mode None Game No. 165 Rogue 165 Adventurer 0 Explorer 0 Win Type - Total 0 Types 0/0/0/0/0/0/0/0/0/0 Lore% 30 Gallery% 27 Achievement% 19 Wizard Run 0 Options --------- Layout 0 ASCII 0 Keyboard 0 Movement Mouse Keybinds 0 Fullscreen 1 Font 18/X11 Map View 38x25 Zoom Use 96% Tactical HUD 1 Map Filters NONE Filters NONE Steam 1 RUN: bda8f93c-3683-4cf6-8923-a339b6947513